bitfinex-derivatives/quotes_SOLF0:USTF0_20241215
["timestamp","ask_amount","ask_price","bid_price","bid_amount"]
[1734255121943,2.2863,218.77,218.74,6.45544973]
[1734255122549,1.98,218.78,218.74,6.45544973]
[1734255122852,4.2662,218.78,218.74,8.74204973]
[1734255125553,2.286,218.8,218.76,2.2864]
[1734255125748,1.98,218.81,218.79,6.45544973]
[1734255126150,1.98,218.81,218.77,6.45544973]
[1734255126450,1.98,218.81,218.74,6.45544973]
[1734255128656,2.2862,218.78,218.74,6.45544973]
[1734255129251,2.2864,218.76,218.72,8.74224973]
[1734255129457,1.98,218.76,218.72,6.45544973]
[1734255130655,2.2865,218.75,218.72,6.45544973]
[1734255132757,1.98,218.76,218.72,6.45544973]
[1734255132959,2.2867,218.73,218.7,7.95514973]
[1734255135259,2.2867,218.73,218.7,6.45544973]
[1734255140957,1.98,218.72,218.69,2.2871]
[1734255141259,1.98,218.72,218.68,8.74264973]
[1734255142357,1.98,218.72,218.69,2.2871]
[1734255145865,4.2667,218.73,218.69,2.2871]
[1734255146060,1.98,218.73,218.69,2.2871]
[1734255146960,1.98,218.73,218.68,12.07950797]
[1734255147266,1.98,218.73,218.7,2.287]
[1734255151965,1.98,218.73,218.69,6.45544973]
[1734255153263,1.98,218.73,218.69,8.74244973]
[1734255153665,1.98,218.73,218.7,2.287]
[1734255154070,1.98,218.73,218.69,6.45544973]
[1734255154268,1.98,218.74,218.71,6.45544973]
[1734255154470,6.45544973,218.78,218.71,6.45544973]
[1734255154772,1.98,218.77,218.71,6.45544973]
[1734255154966,1.98,218.77,218.73,2.2866]
[1734255157864,1.4851,218.83,218.71,6.45544973]
[1734255158063,1.4851,218.83,218.73,6.45544973]
[1734255158262,6.45544973,218.81,218.75,6.45544973]
[1734255158669,6.45544973,218.81,218.78,2.2861]
[1734255158870,8.43544973,218.81,218.78,2.2861]
[1734255159271,1.4851,218.83,218.77,6.45544973]
[1734255159676,6.45544973,218.84,218.77,6.45544973]
[1734255159980,1.98,218.84,218.81,2.2858]
[1734255164377,1.98,218.85,218.82,2.2857]
[1734255165979,1.98,218.85,218.81,6.45544973]
[1734255166173,1.98,218.85,218.83,2.2856]
[1734255166570,1.4201,218.9,218.85,2.2853]
[1734255166777,1.98,218.89,218.85,8.74074973]
[1734255168178,1.98,218.9,218.85,8.74074973]
[1734255168678,4.2649,218.9,218.85,8.74074973]
[1734255169677,1.5439,218.96,218.87,6.45544973]
[1734255169883,2.2847,218.92,218.87,8.74064973]
[1734255170080,1.98,218.95,218.82,5.55810637]
[1734255170081,6.45544973,218.94,218.89,6.45544973]
[1734255170582,1.98,218.95,218.89,6.45544973]
[1734255171184,4.2644,218.95,218.9,2.2849]
[1734255172687,2.2845,218.94,218.89,8.74034973]
[1734255173779,4.2645,218.94,218.89,8.74034973]
[1734255174684,4.2645,218.94,218.91,6.45544973]
[1734255174685,1.98,218.94,218.91,6.45544973]
[1734255174889,1.98,218.94,218.83,1.98]
[1734255175081,1.98,218.94,218.89,6.45544973]
[1734255175281,6.45544973,218.92,218.82,5.55810637]
[1734255175483,6.45544973,218.92,218.86,6.45544973]
[1734255175700,6.45544973,218.93,218.87,6.45544973]
[1734255176585,2.2848,218.91,218.87,6.45544973]
[1734255176778,1.98,218.9,218.87,6.45544973]
[1734255177685,4.2649,218.9,218.87,6.45544973]
[1734255179279,1.98,218.9,218.87,6.45544973]
[1734255179586,1.98,218.9,218.87,8.74064973]
[1734255181087,1.98,218.9,218.82,5.55810637]
[1734255181383,6.45544973,218.89,218.82,6.45544973]
[1734255181589,2.2852,218.87,218.82,6.45544973]
[1734255181882,1.98,218.86,218.82,6.45544973]
[1734255182682,4.2654,218.86,218.82,6.45544973]
[1734255183491,2.2855,218.85,218.82,6.45544973]
[1734255186087,1.98,218.86,218.82,6.45544973]
[1734255186391,1.98,218.86,218.84,6.45544973]
[1734255187282,1.98,218.86,218.8,8.42526617]
[1734255187283,1.98,218.86,218.82,6.45544973]
[1734255187487,2.2855,218.85,218.82,6.45544973]
[1734255192797,2.2855,218.84,218.82,6.45544973]
[1734255195302,2.2856,218.83,218.8,7.91904973]
[1734255195496,2.2856,218.83,218.8,6.45544973]
[1734255196197,253.02257896,219.07,218.82,6.45544973]
[1734255196399,7.95274973,218.94,218.87,6.45544973]
[1734255196804,1.98,218.93,218.87,6.45544973]
[1734255197604,2.2849,218.9,218.87,6.45544973]
[1734255202299,1.98,218.93,218.87,6.45544973]
[1734255202504,6.45544973,218.9,218.82,6.45544973]
[1734255202708,1.98,218.89,218.82,6.45544973]
[1734255202903,6.45544973,218.88,218.82,6.45544973]
[1734255203108,2.2856,218.84,218.82,6.45544973]
[1734255203308,4.2656,218.84,218.82,6.45544973]
[1734255206010,4.2656,218.84,218.81,6.45544973]
[1734255210109,1.98,218.84,218.81,6.45544973]
[1734255211712,4.2655,218.84,218.81,6.45544973]
[1734255212208,2.2856,218.83,218.81,6.45544973]
[1734255212407,1.98,218.84,218.79,6.45544973]
[1734255212806,2.2858,218.82,218.79,6.45544973]
[1734255215113,1.98,218.84,218.79,6.45544973]
[1734255215308,1.98,218.84,218.81,6.45544973]
[1734255215920,4.2655,218.84,218.81,6.45544973]
[1734255216218,1.98,218.84,218.81,6.45544973]
[1734255217510,1.98,218.84,218.81,8.74124973]
[1734255219816,2.2853,218.86,218.82,2.2857]
[1734255220015,1.98,218.85,218.83,6.45544973]
[1734255220418,2.2852,218.88,218.83,6.45544973]
[1734255220714,2.2852,218.88,218.85,6.45544973]
[1734255220715,1.98,218.87,218.85,6.45544973]
[1734255222123,2.2852,218.88,218.85,6.45544973]
[1734255222922,4.265,218.89,218.85,6.45544973]
[1734255223116,4.265,218.89,218.87,6.45544973]
[1734255223821,2.285,218.89,218.87,6.45544973]
[1734255229526,6.45544973,218.89,218.82,1.5472]
[1734255229726,6.45544973,218.89,218.83,6.45544973]
[1734255230722,2.2855,218.85,218.83,6.45544973]
[1734255231017,4.2655,218.85,218.83,6.45544973]
[1734255236733,2.2857,218.83,218.78,2.2861]
[1734255236934,1.98,218.85,218.8,6.45544973]
[1734255240642,2.2856,218.84,218.8,6.45544973]
[1734255241341,2.2856,218.83,218.8,6.45544973]
[1734255243845,2.2859,218.81,218.79,6.45544973]
[1734255245543,2.2857,218.82,218.79,6.45544973]
[1734255245944,1.98,218.85,218.81,6.45544973]
[1734255247647,2.2856,218.84,218.81,6.45544973]
[1734255253150,1.98,218.85,218.77,2.2862]
[1734255253352,1.98,218.85,218.78,6.45544973]
[1734255253853,2.2856,218.83,218.78,6.45544973]
[1734255254054,1.98,218.85,218.78,6.45544973]
[1734255255358,2.2858,218.82,218.78,6.45544973]
[1734255255555,2.2858,218.82,218.8,6.45544973]
[1734255259558,2.2856,218.84,218.8,6.45544973]
[1734255259764,6.45544973,218.88,218.8,6.45544973]
[1734255260067,6.45544973,218.88,218.82,6.45544973]
[1734255260068,1.98,218.87,218.82,6.45544973]
[1734255260266,2.2855,218.85,218.82,6.45544973]
[1734255260465,1.98,218.87,218.82,6.45544973]
[1734255260979,6.45544973,218.86,218.78,8.74154973]
[1734255261160,6.45544973,218.86,218.78,6.45544973]
[1734255261359,6.45544973,218.84,218.75,1.4439]
[1734255261670,6.45544973,218.82,218.75,6.45544973]
[1734255261966,1.98,218.81,218.75,6.45544973]
[1734255263669,2.2861,218.79,218.75,6.45544973]
[1734255264169,1.98,218.81,218.77,6.45544973]
[1734255264370,2.286,218.8,218.77,6.45544973]
[1734255265063,1.98,218.81,218.77,6.45544973]
[1734255265270,1.98,218.81,218.74,5.39739298]
[1734255265271,1.98,218.81,218.79,6.45544973]
[1734255266971,4.2658,218.81,218.79,6.45544973]
[1734255274274,1.98,218.81,218.79,6.45544973]
[1734255276873,2.2862,218.78,218.73,2.2866]
[1734255277069,1.98,218.81,218.74,6.45544973]
[1734255278171,2.2862,218.78,218.74,8.74204973]
[1734255278775,2.2862,218.78,218.74,6.45544973]
[1734255279176,1.98,218.81,218.74,6.45544973]
[1734255279375,2.2863,218.77,218.74,6.45544973]
[1734255280371,1.98,218.81,218.74,6.45544973]
[1734255280372,2.2861,218.79,218.74,6.45544973]
[1734255281280,2.2862,218.78,218.74,8.74204973]
[1734255283981,2.2863,218.77,218.74,6.45544973]
[1734255285570,2.2861,218.79,218.72,5.54532265]
[1734255285776,2.2861,218.79,218.74,6.45544973]
[1734255286676,1.98,218.81,218.76,6.45544973]
[1734255286677,4.2658,218.81,218.76,6.45544973]
[1734255286881,6.45544973,218.84,218.78,6.45544973]
[1734255287081,1.98,218.83,218.78,6.45544973]
[1734255287384,1.98,218.82,218.78,6.45544973]
[1734255287580,1.98,218.82,218.8,6.45544973]
[1734255287781,1.98,218.84,218.8,6.45544973]
[1734255288680,1.98,218.84,218.81,2.2858]
[1734255289583,2.2854,218.85,218.81,2.2858]
[1734255289784,4.2654,218.85,218.81,2.2858]
[1734255290283,4.2654,218.85,218.8,6.45544973]
[1734255291285,6.45544973,218.89,218.82,6.45544973]
[1734255291584,6.45544973,218.89,218.83,2.2856]
[1734255291585,4.2652,218.88,218.83,2.2856]
[1734255295784,4.2652,218.88,218.85,2.2854]
[1734255295785,1.98,218.88,218.85,2.2854]
[1734255296086,1.98,218.89,218.84,6.45544973]
[1734255296388,6.45544973,218.91,218.84,6.45544973]
[1734255296585,1.98,218.9,218.84,6.45544973]
[1734255296887,1.98,218.9,218.86,6.45544973]
[1734255297779,1.98,218.9,218.87,2.2852]
[1734255300592,3.7723,218.92,218.87,2.2852]
[1734255300791,5.7523,218.92,218.87,2.2852]
[1734255300987,4.2647,218.92,218.87,2.2852]
[1734255302591,4.2647,218.92,218.88,6.45544973]
[1734255302791,4.2647,218.92,218.88,8.74054973]
[1734255303589,1.98,218.92,218.88,8.74054973]
[1734255305890,1.98,218.92,218.9,2.2849]
[1734255307492,2.2845,218.94,218.9,8.74034973]
[1734255307688,1.98,218.95,218.9,8.74034973]
[1734255307888,1.98,218.95,218.9,2.2849]
[1734255308092,8.43544973,218.95,218.9,2.2849]
[1734255309093,8.43544973,218.95,218.85,7.47458691]
[1734255309291,6.45544973,218.93,218.86,6.45544973]
[1734255309489,6.45544973,218.91,218.84,6.45544973]
[1734255309691,8.43544973,218.91,218.84,6.45544973]
[1734255309995,2.285,218.9,218.85,2.2854]
[1734255310199,8.43544973,218.91,218.85,2.2854]
[1734255311201,8.43544973,218.91,218.85,8.74084973]
[1734255311396,2.2849,218.9,218.85,8.74084973]
[1734255312295,2.285,218.89,218.85,2.2854]
[1734255312496,2.285,218.89,218.85,6.45544973]
[1734255315298,2.285,218.89,218.85,8.74084973]
[1734255316199,2.2849,218.9,218.85,8.74084973]
[1734255317698,2.285,218.89,218.85,8.74084973]
[1734255318100,1.98,218.91,218.84,2.2855]
[1734255318296,6.45544973,218.89,218.82,6.45544973]
[1734255319204,6.45544973,218.89,218.82,11.83690368]
[1734255319500,6.45544973,218.89,218.83,2.2856]
[1734255319501,2.2852,218.87,218.83,2.2856]
[1734255319698,1.98,218.86,218.84,6.45544973]
[1734255320898,1.98,218.86,218.84,8.74094973]
[1734255321704,1.98,218.89,218.85,2.2853]
[1734255321899,1.98,218.89,218.87,6.45544973]
[1734255326908,4.2649,218.9,218.87,6.45544973]
[1734255327303,7.88874973,218.94,218.87,8.74064973]
[1734255327304,2.2848,218.92,218.87,8.74064973]
[1734255327507,1.98,218.91,218.87,8.74064973]
[1734255328007,1.98,218.91,218.87,2.2852]
[1734255328207,2.2848,218.92,218.88,6.45544973]
[1734255328508,4.2648,218.92,218.88,6.45544973]
[1734255332504,2.2848,218.91,218.88,6.45544973]
[1734255342713,2.2848,218.91,218.87,2.2852]
[1734255342914,1.98,218.92,218.87,6.45544973]
[1734255342915,2.2849,218.9,218.87,6.45544973]
[1734255343114,2.2849,218.9,218.82,8.67031528]
[1734255343115,6.45544973,218.9,218.82,8.67031528]
[1734255343313,6.45544973,218.88,218.81,6.45544973]
[1734255343510,2.2857,218.83,218.81,6.45544973]
[1734255345418,1.98,218.87,218.77,2.2862]
[1734255345419,2.2858,218.82,218.77,2.2862]
[1734255345725,2.2858,218.82,218.79,6.45544973]
[1734255348822,1.98,218.83,218.77,6.45544973]
[1734255349015,2.2859,218.81,218.77,6.45544973]
[1734255350219,2.2859,218.81,218.77,8.74164973]
[1734255350620,2.2859,218.81,218.77,2.2862]
[1734255350819,2.2859,218.81,218.78,6.45544973]
[1734255366341,2.2859,218.81,218.77,2.2862]
[1734255367841,1.98,218.83,218.78,6.45544973]
[1734255368038,1.98,218.83,218.8,6.45544973]
[1734255368433,1.4295,218.87,218.8,6.45544973]
[1734255368640,1.98,218.86,218.8,6.45544973]
[1734255368839,1.98,218.85,218.8,6.45544973]
[1734255369842,4.2655,218.85,218.81,2.2858]
[1734255370539,6.45544973,218.88,218.83,2.2856]
[1734255370540,1.98,218.86,218.83,2.2856]
[1734255370735,2.2852,218.88,218.82,6.45544973]
[1734255370940,4.2652,218.88,218.82,6.45544973]
[1734255371649,4.2652,218.88,218.84,2.2855]
[1734255371844,1.98,218.88,218.84,2.2855]
[1734255372937,6.45544973,218.9,218.85,2.2854]
[1734255373136,1.98,218.89,218.85,2.2854]
[1734255373737,1.98,218.89,218.86,8.74074973]
[1734255377239,2.2848,218.91,218.86,8.74074973]
[1734255379545,6.45544973,218.91,218.79,1.98]
[1734255379749,6.45544973,218.91,218.84,6.45544973]
[1734255381642,1.98,218.92,218.77,2.9698]
[1734255381643,6.45544973,218.87,218.77,2.9698]
[1734255381844,1.98,218.86,218.79,6.45544973]
[1734255382653,2.2855,218.84,218.79,8.74144973]
[1734255383052,1.98,218.86,218.79,6.45544973]
[1734255383356,2.2857,218.82,218.79,6.45544973]
[1734255383556,4.2657,218.82,218.79,6.45544973]
[1734255393857,1.98,218.82,218.79,6.45544973]
[1734255395563,1.98,218.82,218.79,8.74144973]
[1734255395865,1.98,218.82,218.79,2.286]
[1734255396060,1.98,218.82,218.79,8.74144973]
[1734255397364,2.2856,218.84,218.79,8.74144973]
[1734255402862,2.2854,218.86,218.8,2.2859]
[1734255403067,1.98,218.85,218.81,6.45544973]
[1734255403763,6.45544973,218.92,218.83,6.45544973]
[1734255403967,1.98,218.91,218.83,6.45544973]
[1734255405569,2.2851,218.88,218.83,8.74104973]
[1734255407466,2.2852,218.87,218.83,8.74104973]
[1734255408068,2.2852,218.88,218.83,8.74104973]
[1734255409772,2.2852,218.87,218.83,8.74104973]
[1734255411265,2.2851,218.88,218.83,8.74104973]
[1734255411467,1.98,218.89,218.85,6.45544973]
[1734255411672,4.265,218.89,218.85,6.45544973]
[1734255413673,2.285,218.89,218.85,6.45544973]
[1734255413874,2.285,218.89,218.85,8.74084973]
[1734255415479,2.285,218.89,218.85,2.2854]
[1734255415681,6.82680482,218.96,218.79,4.3494]
[1734255415880,1.98,218.95,218.79,4.3494]
[1734255416081,6.45544973,218.88,218.81,6.45544973]
[1734255416382,1.98,218.87,218.81,6.45544973]
[1734255416775,1.98,218.87,218.81,11.90963623]
[1734255417589,2.2853,218.86,218.81,14.19533623]
[1734255419884,1.4017,218.96,218.85,6.45544973]
[1734255420089,9.83714973,218.96,218.87,6.45544973]
[1734255420386,2.2845,218.95,218.89,8.74044973]
[1734255420588,2.2845,218.95,218.89,6.45544973]
[1734255420782,1.98,218.96,218.89,6.45544973]
[1734255420984,8.73974973,218.97,218.91,2.2848]
[1734255421183,1.98,218.96,218.91,2.2848]
[1734255421390,1.98,218.96,218.91,8.74024973]
[1734255422192,2.2843,218.97,218.91,8.74024973]
[1734255422486,1.98,218.97,218.93,6.45544973]
[1734255424191,1.98,218.97,218.94,2.2844]
[1734255424991,1.98,218.97,218.93,6.45544973]
[1734255425190,1.98,218.97,218.95,2.2843]
[1734255425388,1.98,218.99,218.95,6.45544973]
[1734255425794,1.98,219.01,218.95,6.45544973]
[1734255426591,1.98,219.01,218.97,2.2841]
[1734255428194,2.2837,219.02,218.98,2.284]
[1734255428195,1.98,219.02,218.98,2.284]
[1734255428994,1.98,219.02,218.99,2.2839]
[1734255429196,2.2835,219.04,218.99,2.2839]
[1734255429392,2.2835,219.04,218.99,8.73934973]
[1734255429594,1.98,219.05,218.99,8.73934973]
[1734255429803,8.73874973,219.06,218.99,8.73934973]
[1734255429994,1.98,219.05,218.99,6.45544973]
[1734255430198,1.98,219.05,219.0,2.2839]
[1734255434301,1.98,219.05,219.01,6.45544973]
[1734255435598,4.2633,219.05,219.01,6.45544973]
[1734255441404,2.2833,219.05,219.01,6.45544973]
[1734255443605,2.2833,219.05,219.0,2.2839]
[1734255443806,2.2833,219.05,219.01,6.45544973]
[1734255445103,2.2834,219.04,219.01,6.45544973]
[1734255453806,1.4707,219.1,219.03,6.45544973]
[1734255454015,1.98,219.09,219.05,6.45544973]
[1734255455807,1.98,219.09,219.05,8.73874973]
[1734255455808,4.2629,219.09,219.05,8.73874973]
[1734255456414,2.2829,219.09,219.05,8.73874973]
[1734255456705,67.29483361,219.14,219.07,8.73854973]
[1734255456910,1.98,219.13,219.07,8.73854973]
[1734255457111,2.2827,219.12,219.07,2.2831]
[1734255457320,1.98,219.13,219.07,6.45544973]
[1734255457321,8.43544973,219.13,219.07,6.45544973]
[1734255458812,2.2828,219.11,219.07,6.45544973]
[1734255467418,1.98,219.13,219.07,6.45544973]
[1734255467613,6.45544973,219.12,219.02,2.2836]
[1734255467815,6.45544973,219.12,219.04,6.45544973]
[1734255468217,6.45544973,219.1,219.04,6.45544973]
[1734255468416,1.98,219.09,219.04,6.45544973]
[1734255468719,2.2832,219.07,219.04,6.45544973]
[1734255476725,1.98,219.09,219.06,6.45544973]
[1734255476920,1.98,219.1,219.08,6.45544973]
[1734255477127,1.98,219.11,219.08,6.45544973]
[1734255477526,4.2627,219.11,219.08,6.45544973]
[1734255478331,1.98,219.11,219.05,6.45544973]
[1734255478634,8.43544973,219.11,219.03,6.45544973]
[1734255479225,6.45544973,219.09,219.03,6.45544973]
[1734255480727,2.2833,219.06,219.03,6.45544973]
[1734255480939,4.2633,219.06,219.03,6.45544973]
[1734255491635,1.98,219.06,219.05,6.45544973]
[1734255493637,4.2629,219.09,219.05,6.45544973]
[1734255494342,2.2832,219.07,219.03,6.45544973]
[1734255496939,4.2632,219.07,219.03,6.45544973]
[1734255498442,4.2632,219.07,219.02,2.2836]
[1734255498443,1.98,219.07,219.0,85.41405781]
[1734255498648,8.43544973,219.07,219.0,85.41405781]
[1734255498865,1.5153,219.06,219.0,85.41405781]
[1734255499037,2.2838,219.01,218.96,2.2843]
[1734255499343,2.2838,219.01,218.98,6.45544973]
[1734255499934,2.2842,218.97,218.92,2.2847]
[1734255500136,4.2642,218.97,218.93,6.45544973]
[1734255501440,4.2642,218.97,218.95,6.45544973]
[1734255501638,1.98,218.97,218.95,6.45544973]
[1734255501844,1.98,219.0,218.95,6.45544973]
[1734255502042,1.98,219.0,218.97,6.45544973]
[1734255502339,1.98,219.0,218.97,8.73954973]
[1734255504046,1.98,219.0,218.97,6.45544973]
[1734255507239,1.98,219.0,218.96,2.2843]
[1734255507445,1.98,219.0,218.97,6.45544973]
[1734255508545,4.2638,219.01,218.97,6.45544973]
[1734255508943,4.2638,219.01,218.97,8.73964973]
[1734255509142,4.2638,219.01,218.97,2.2842]
[1734255509347,4.2638,219.01,218.98,6.45544973]
[1734255510044,2.2838,219.01,218.98,6.45544973]
[1734255510842,4.2637,219.02,218.98,6.45544973]
[1734255511242,4.2637,219.02,218.92,5.51995568]
[1734255511243,4.2637,219.02,219.0,6.45544973]
[1734255512148,4.2637,219.02,218.98,6.45544973]
[1734255523258,4.2637,219.02,218.98,8.73954973]
[1734255528880,1.5153,219.06,218.98,6.45544973]
[1734255529167,1.5153,219.06,219.0,8.73924973]
[1734255529168,1.98,219.05,219.0,8.73924973]
[1734255530263,4.2633,219.05,219.0,8.73924973]
[1734255530665,4.2633,219.05,219.01,2.2837]
[1734255531065,1.98,219.05,219.0,6.45544973]
[1734255531260,1.98,219.05,219.02,2.2836]
[1734255533465,1.98,219.05,219.0,8.73924973]
[1734255533665,1.98,219.05,218.97,5.46410627]
[1734255533970,6.45544973,219.04,218.98,6.45544973]
[1734255534860,2.2836,219.03,218.98,6.45544973]
[1734255535066,6.45544973,219.04,218.98,6.45544973]
[1734255536461,2.2836,219.03,218.98,6.45544973]
[1734255536764,6.45544973,219.04,218.98,6.45544973]
[1734255537663,2.2837,219.02,218.98,6.45544973]
[1734255537968,1.98,219.01,218.98,6.45544973]
[1734255538770,1.98,219.01,218.97,2.2841]
[1734255539271,6.45544973,219.0,218.91,1.4469]
[1734255539467,2.2844,218.95,218.91,1.4469]
[1734255539662,2.2844,218.95,218.91,6.45544973]
[1734255540870,2.2844,218.95,218.91,8.74024973]
[1734255543469,2.2844,218.95,218.89,1.499]
[1734255543674,2.2845,218.94,218.89,6.45544973]
[1734255543974,2.2845,218.94,218.89,11.99481841]
[1734255544470,2.2845,218.94,218.91,6.45544973]
[1734255545171,1.98,218.97,218.88,2.285]
[1734255545375,2.2846,218.93,218.9,6.45544973]
[1734255545572,1.98,218.97,218.92,6.45544973]
[1734255545767,1.98,218.97,218.91,2.2848]
[1734255545768,2.2844,218.95,218.91,2.2848]
[1734255545974,2.2844,218.95,218.92,6.45544973]
[1734255546371,1.98,218.97,218.92,6.45544973]
[1734255546576,1.98,218.96,218.92,6.45544973]
[1734255546981,4.2643,218.96,218.92,6.45544973]
[1734255547782,1.98,218.96,218.92,6.45544973]
[1734255547983,2.2845,218.95,218.92,6.45544973]
[1734255548383,1.98,218.96,218.92,6.45544973]
[1734255548889,4.2643,218.96,218.92,6.45544973]
[1734255549290,1.98,218.96,218.92,8.74014973]
[1734255550991,2.2842,218.97,218.93,2.2846]
[1734255551288,4.2642,218.97,218.93,2.2846]
[1734255557490,1.98,218.97,218.94,2.2845]
[1734255558994,4.2641,218.98,218.94,2.2845]
[1734255559499,4.2641,218.98,218.93,2.2846]
[1734255559793,2.2842,218.97,218.93,2.2846]
[1734255560983,2.2842,218.97,218.92,2.2847]
[1734255564994,2.2842,218.97,218.93,2.2846]
[1734255570893,1.4075,219.03,218.95,6.45544973]
[1734255570894,6.45544973,219.01,218.95,6.45544973]
[1734255571099,1.98,219.0,218.95,6.45544973]
[1734255572594,4.2639,219.0,218.96,2.2843]
[1734255574895,1.98,219.0,218.95,6.45544973]
[1734255575097,2.284,218.99,218.95,6.45544973]
[1734255576605,2.284,218.99,218.95,8.73984973]
[1734255577003,4.2639,219.0,218.95,8.73984973]
[1734255582798,2.2837,219.02,218.95,6.45544973]
[1734255582996,1.98,219.02,218.97,6.45544973]
[1734255584203,1.98,219.03,218.97,6.45544973]
[1734255584606,2.2836,219.03,218.99,2.284]
[1734255585602,2.2832,219.06,219.01,2.2837]
[1734255585808,1.98,219.05,219.01,2.2837]
[1734255586404,5.41918749,219.13,219.01,6.45544973]
[1734255586603,6.45544973,219.09,219.03,6.45544973]
[1734255586805,8.43544973,219.09,219.03,6.45544973]
[1734255587507,8.43544973,219.09,219.04,2.2834]
[1734255588010,10.71834973,219.09,219.04,2.2834]
[1734255590708,1.98,219.09,219.05,2.2833]
[1734255592910,6.45544973,219.11,219.07,2.2831]
[1734255593106,1.98,219.11,219.07,2.2831]
[1734255594307,6.45544973,219.13,219.06,6.45544973]
[1734255594507,1.98,219.12,219.08,2.283]
[1734255595010,1.98,219.12,219.06,6.45544973]
[1734255595808,1.98,219.12,219.08,2.2829]
[1734255597306,1.98,219.12,219.09,2.2829]
[1734255602021,1.4898,219.23,219.08,6.45544973]
[1734255602022,6.45544973,219.22,219.11,6.45544973]
[1734255602220,6.45544973,219.22,219.15,6.45544973]
[1734255602420,6.64667973,219.2,219.15,6.45544973]
[1734255602615,8.92847973,219.2,219.15,6.45544973]
[1734255602815,10.90847973,219.2,219.15,6.45544973]
[1734255603618,8.62667973,219.2,219.15,6.45544973]
[1734255603920,8.62667973,219.2,219.15,8.73764973]
[1734255604227,2.17123,219.2,219.15,6.45544973]
[1734255605224,0.19123,219.2,219.17,2.2821]
[1734255605418,0.19123,219.2,219.17,6.45544973]
[1734255605722,0.19123,219.2,219.19,6.45544973]
[1734255606724,0.19123,219.2,219.19,8.73734973]
[1734255608931,0.19123,219.2,219.19,2.2819]
[1734255609128,0.19123,219.2,219.19,8.73734973]
[1734255611123,2.2813,219.25,219.2,2.2817]
[1734255611924,6.45544973,219.26,219.19,6.45544973]
[1734255611925,8.73664973,219.26,219.21,2.2817]
[1734255613827,2.2812,219.26,219.21,8.73714973]
[1734255615154,1.98,219.27,219.23,2.2814]
[1734255615327,1.4942,219.28,219.23,8.73684973]
[1734255615630,1.4942,219.28,219.23,6.45544973]
[1734255615631,3.4742,219.28,219.23,6.45544973]
[1734255616727,2.2811,219.27,219.23,6.45544973]
[1734255617825,2.2807,219.31,219.25,6.45544973]
[1734255618033,4.2607,219.31,219.25,6.45544973]
[1734255618731,4.2607,219.31,219.25,8.73664973]
[1734255620028,4.2607,219.31,219.26,2.2811]
[1734255622338,4.2607,219.31,219.21,1.98]
[1734255622339,43.71877475,219.32,219.27,8.73644973]
[1734255623633,45.99927475,219.32,219.27,8.73644973]
[1734255625536,45.99927475,219.32,219.27,6.45544973]
[1734255625835,45.99927475,219.32,219.28,2.2809]
[1734255629032,4.2404,219.33,219.28,2.2809]
[1734255629429,2.2804,219.33,219.28,2.2809]
[1734255631636,2.2804,219.33,219.29,6.45544973]
[1734255636431,2.2804,219.33,219.29,8.73624973]
[1734255637937,2.2804,219.33,219.29,6.45544973]
[1734255643739,2.2804,219.33,219.28,2.2809]
[1734255643944,2.2804,219.33,219.29,6.45544973]
[1734255648442,2.2806,219.32,219.29,6.45544973]
[1734255649940,1.96,219.34,219.25,2.2812]
[1734255650144,6.45544973,219.28,219.22,6.45544973]
[1734255650345,8.41544973,219.28,219.22,6.45544973]
[1734255650641,1.96,219.28,219.24,6.45544973]
[1734255652746,1.96,219.28,219.25,2.2812]
[1734255653447,1.96,219.28,219.26,8.73654973]
[1734255653748,2.2807,219.31,219.26,6.45544973]
[1734255654447,2.2807,219.31,219.22,1.96]
[1734255654448,2.2807,219.31,219.28,6.45544973]
[1734255654644,1.96,219.32,219.28,6.45544973]
[1734255654845,1.96,219.32,219.28,8.73634973]
[1734255655850,2.2805,219.33,219.29,2.2808]
[1734255657348,4.2402,219.35,219.3,8.73614973]